{"text_format":"2","workbook":"xlsx","n_sheets":5,"sheets":["Information","Samleark","KM regnskab","Anden godtgørelse","Vedhæftning af bilag"],"not_rendered":{"charts":0,"images":1,"macros":0,"external_links":0,"defined_names":0,"comments":4,"pivot_tables":0},"unopened":[],"bounds":{"document_bytes":16777216,"sheet_cells":100000,"run_cost":"one","rows_first":2000,"rows_last":500,"rows_between":2000,"halvings":0,"cell_chars":16384,"cell_head_chars":4096},"cells_cut":0,"cells_raw":0,"read":"whole","date_system":"1900"}

{"sheet":"Information","index":0,"n_rows":35,"n_cols":7,"rows_kept":35,"cut":false,"hidden":false,"merged":[[13,0,13,6],[5,0,5,6]]}
["Hvidovre Idrætsforening, Fodboldafdelingen",{"$nulls":5},"Godtgørelse 2018"]
[]
["Information 2018"]
[]
[]
["Ulønnede instruktører, trænere og ledere kan få skattefri omkostningsgodtgørelse for det arbejde, de udfører i deres forening. Skatterådet har justeret enkelte satser, for eksempel kørsel. De nye satser gælder pr. 1. 1. 2018."]
[]
[null,null,null,"Godtgørelse pr. år.",null,"Godtgørelse pr. mdr."]
["Telefonsamtaler og internetforbrug",null,null,2350,null,{"$f":"D9/12","v":195.83333333333334}]
["Administrative omkostninger",null,null,1400,null,{"$f":"D10/12","v":116.66666666666667}]
["Køb, vask og vedligeholdelse af tøj",null,null,1950,null,162.5]
["I alt ",null,null,{"$f":"SUM(D6:D11)","v":5700},"pr. år",475,"pr. mdr."]
[]
["Din forening kan udbetale befordringsgodtgørelse til personer, der udfører frivilligt arbejde i foreningen. Skatterådet har fastsat nye satser, som gælder pr. 1. 1. 2017:"]
[]
[null,"Km","Sats","Godtgørelse i alt"]
["De første 20.000 km.: ",20000,3.54,{"$f":"B17*C17","v":70800},"(2017: 3,53 kr.)"]
["Over 20.000 km.: ",null,1.94,null,"(2017: 1,93 kr.)"]
[]
["Kost ved arrangementer: ",null,70,"pr. dag. Arrangementet skal vare minimum 5 timer."]
[]
["Læs mere om godtgørelse på HIF hjemmeside",{"$nulls":4},"Her"]
[]
["Afdelinger","Afdelingsleder",null,null,"Hvem er omfattet "]
["Vælg Afdeling","-",null,null,"-"]
["Sportslig Ansvarlig","Jacob Kornerup",null,null,"Afdelingsledere"]
["Talentakademiet (U13A-19A + 2. Senior)","Christian Grønbæk",null,null,"(U13A-19A + 2. senior)"]
["Herre ungdom/-senior (U13-U19 + Senior og GM)","Lotte Christiansen",null,null,"(U13-U19 + Senior og GM)"]
["Drenge (U3-U12)","Jack Nilaus",null,null,"(U3-U12)"]
["Dame ungdom/-senior (U12-U19 + Senior og GM)","Lotte Christiansen",null,null,"(U12-U19 + Senior og GM)"]
["Piger (U3-U11)","Thomas Mogensen Wolfram",null,null,"(U3-U11)"]
[]
["Godkendelse"]
["Godtgørelsen skal være godkendt af din afdelingsleder",null,"JA"]
[null,null,"NEJ"]

{"sheet":"Samleark","index":1,"n_rows":34,"n_cols":7,"rows_kept":34,"cut":false,"hidden":false,"merged":[[13,2,13,4],[14,2,14,4],[15,2,15,4],[5,2,5,4],[6,2,6,4],[7,2,7,4],[8,2,8,4],[10,2,10,4],[11,2,11,4]]}
["Hvidovre Idrætsforening, Fodboldafdelingen",{"$nulls":5},"Godtgørelse 2018"]
[]
["Information"]
[]
[]
["Navn"]
["Adresse"]
["Cpr. nr."]
["Køretøjets reg.nr."]
[]
["Afdeling",null,"Vælg Afdeling"]
["Afdelingsleder",null,{"$f":"VLOOKUP(C11,Information!A25:'Information'!F31,2,FALSE)","v":"-"}]
[]
["Afregningsperiode",null,"Måned"]
["Mdr. aftalt godtgørelse",null,"Hvilken mdr. godtgørelse er aftalt"]
["Bank kontonummer til overførsel"]
[]
[]
["Kørsel",null,null,"Godtgøresle"]
["Jf. KM regnskab",null,null,{"$f":"'KM regnskab'!H65","v":70.8}]
[]
["Andre udlæg"]
["Jf. anden godtgørelse",null,null,{"$f":"'Anden godtgørelse'!H21","v":0}]
[]
["Standard jf. aftale"]
["Antal mdr. godtgørelsen dækker",null,null,1,"måneder"]
[]
[null,null,null,"Godtgøresle"]
["Telefonsamtaler og internetforbrug",null,null,{"$f":"Information!F9*D26","v":195.83333333333334}]
["Administrative omkostninger",null,null,{"$f":"Information!F10*D26","v":116.66666666666667}]
["Køb, vask og vedligeholdelse af tøj",null,null,{"$f":"Information!F11*D26","v":162.5}]
["I alt ",null,null,{"$f":"SUM(D26:D31)","v":476}]
[]
["Godtgørelse i alt",null,null,{"$f":"D20+D23+D32","v":546.79999999999995}]

{"sheet":"KM regnskab","index":2,"n_rows":70,"n_cols":8,"rows_kept":70,"cut":false,"hidden":false,"merged":[[18,0,19,0],[18,7,19,7],[18,4,19,4],[18,5,19,5],[67,2,67,3],[69,2,69,3],[67,5,67,6],[69,5,69,6],[11,4,11,6],[13,4,13,6],[14,4,14,6],[15,4,15,6],[18,6,19,6],[10,4,10,6],[8,4,8,6],[7,4,7,6],[6,4,6,6],[5,4,5,6]]}
["Hvidovre Idrætsforening, Fodboldafdelingen",{"$nulls":6},"Godtgørelse 2018"]
[]
["Kilometerregnskab"]
[]
[]
["Navn"]
["Adresse"]
["Cpr. nr."]
["Køretøjets reg.nr."]
[]
["Afdeling",null,null,null,"Talentansvarlig"]
["Afdelingsleder",null,null,null,{"$f":"VLOOKUP(E11,Information!A26:'Information'!F31,2,FALSE)","v":{"$error":"#N/A"}}]
[]
["Afregningsperiode",null,null,null,"Måned"]
["Mdr. aftalt godtgørelse",null,null,null,"Hvilken mdr. godtgørelse er aftalt"]
["Bank kontonummer til overførsel"]
[]
[]
["Dato","Kørt fra","Kørt via","Kørt til","Pr. gang","Antal gange","Km.","Beskrivelse / formål"]
[null,"(adresse)","(adresse)","(adresse)"]
["Januar",null,"Sollentuna Alle 1-3\n2650 Hvidovre","Byvej 72, 2650 Hvidovre",1,10,{"$f":"E21*F21","v":10},"Træning"]
["Februar",{"$nulls":5},{"$f":"E22*F22","v":0},"Træning"]
["Marts",{"$nulls":5},0,"Træning"]
["April",{"$nulls":5},0,"Træning"]
["Maj",{"$nulls":5},0,"Træning"]
["Juni",{"$nulls":5},0,"Træning"]
["2018-01-01","Byvej 38, 2650 Hvidovre","Sollentuna Alle 1-3\n2650 Hvidovre","Byvej 72, 2650 Hvidovre",10,1,10,"Kamp/scout/andet"]
[{"$nulls":6},{"$f":"E28*F28","v":0}]
[{"$nulls":6},0]
[{"$nulls":6},0]
[{"$nulls":6},0]
[{"$nulls":6},0]
[{"$nulls":6},0]
[{"$nulls":6},0]
[{"$nulls":6},0]
[{"$nulls":6},0]
[{"$nulls":6},0]
[{"$nulls":6},0]
[{"$nulls":6},0]
[{"$nulls":6},0]
[{"$nulls":6},0]
[{"$nulls":6},0]
[{"$nulls":6},0]
[{"$nulls":6},0]
[{"$nulls":6},0]
[{"$nulls":6},0]
[{"$nulls":6},0]
[{"$nulls":6},0]
[{"$nulls":6},0]
[{"$nulls":6},{"$f":"E50*F50","v":0}]
[{"$nulls":6},0]
[{"$nulls":6},0]
[{"$nulls":6},0]
[{"$nulls":6},0]
[{"$nulls":6},0]
[{"$nulls":6},0]
[{"$nulls":6},0]
[{"$nulls":6},0]
[{"$nulls":6},0]
[{"$nulls":6},0]
[{"$nulls":6},0]
[{"$nulls":6},0]
["➊ Km til befordringsgodtgørelse",{"$nulls":5},{"$f":"SUM(G21:G62)","v":20}]
[]
["➊ Befordringsgodtgørelse ",null,"km",null,{"$f":"G63","v":20},"á",{"$f":"Information!C17","v":3.54},{"$f":"G63*G65","v":70.8}]
[]
[]
["Udarbejdet af:",null,null,null,"Dato",null,null,"Navn (Underskrift hvis ikke elektronisk)"]
[]
["Godkendt af:",null,null,null,"Dato",null,null,"Navn (Underskrift hvis ikke elektronisk)"]

{"sheet":"Anden godtgørelse","index":3,"n_rows":50,"n_cols":9,"rows_kept":50,"cut":false,"hidden":false,"merged":[[5,4,5,6],[49,4,49,6],[47,4,47,6],[18,3,19,3],[18,4,18,6],[42,1,42,5],[18,2,19,2],[13,4,13,6],[14,4,14,6],[15,4,15,6],[6,4,6,6],[7,4,7,6],[8,4,8,6],[10,4,10,6],[11,4,11,6]]}
["Hvidovre Idrætsforening, Fodboldafdelingen",{"$nulls":7},"Godtgørelse 2018"]
[]
["Anden godtgørelse"]
[]
[]
["Navn"]
["Adresse"]
["Cpr. nr."]
["Køretøjets reg.nr."]
[]
["Afdeling",null,null,null,"Talentansvarlig"]
["Afdelingsleder",null,null,null,{"$f":"VLOOKUP(E11,Information!A26:'Information'!F31,2,FALSE)","v":{"$error":"#N/A"}}]
[]
["Afregningsperiode",null,null,null,"Måned"]
["Mdr. aftalt godtgørelse",null,null,null,"Hvilken mdr. godtgørelse er aftalt"]
["Bank kontonummer til overførsel"]
[]
[]
["Dato","Bestemmelsessted","➊ Kørte km","➋ Udenbys kampe mv. (endagsture min. 5 timer) antal gange","➌ Rejse med overnatning (mindst 24 t. varighed) i kr.",null,null,"➍ Udlæg for klubben i flg. bilag kr.","Bemærkninger: formål mv."]
[null,"(adresse)",null,null,"Natophold","Fortæring","Småfornødenheder"]
{"$rows_empty":16}
["I alt for perioden:",null,{"$f":"SUM(C21:C36)","v":0},{"$f":"SUM(D21:D36)","v":0},{"$f":"SUM(E21:E36)","v":0},{"$f":"SUM(F21:F36)","v":0},0,{"$f":"SUM(H21:H36)","v":0}]
[]
["➊ Befordringsgodtgørelse km ",null,null,{"$f":"+C37","v":0},"km","á",{"$f":"Information!C17","v":3.54}," =",{"$f":"+D39*G39","v":0}]
["➋ Merudgift til fortæring gange",null,null,{"$f":"+D37","v":0},"gange"," á",{"$f":"Information!C20","v":70}," =",{"$f":"+G40*D40","v":0}]
["➌ Rejsegodtgørelse",{"$nulls":6}," =",{"$f":"+E37+F37+G37","v":0}]
["➍ Udlæg for klubben iflg. bilag",{"$nulls":6}," =",{"$f":"+H37","v":0}]
["Andet: ",{"$nulls":6}," ="]
[]
["Godtgørelse i alt",{"$nulls":6}," =",{"$f":"SUM(I39:I44)","v":0}]
[]
[]
["Udarbejdet af:",null,null,"Dato",null,null,null,"Navn (Underskrift hvis ikke elektronisk)"]
[]
["Godkendt af:",null,null,"Dato",{"$f":"D12","v":0},null,null,"Navn (Underskrift hvis ikke elektronisk)"]

{"sheet":"Vedhæftning af bilag","index":4,"n_rows":16,"n_cols":9,"rows_kept":16,"cut":false,"hidden":false,"merged":[[14,4,14,6],[15,4,15,6],[5,4,5,6],[6,4,6,6],[7,4,7,6],[8,4,8,6],[10,4,10,6],[11,4,11,6],[13,4,13,6]]}
["Hvidovre Idrætsforening, Fodboldafdelingen",{"$nulls":7},"Godtgørelse 2018"]
[]
["vedhæftning af bilag"]
[]
[]
["Navn"]
["Adresse"]
["Cpr. nr."]
["Køretøjets reg.nr."]
[]
["Afdeling",null,null,null,"Talentansvarlig"]
["Afdelingsleder",null,null,null,{"$f":"VLOOKUP(E11,Information!A26:'Information'!F31,2,FALSE)","v":{"$error":"#N/A"}}]
[]
["Afregningsperiode",null,null,null,"Måned"]
["Mdr. aftalt godtgørelse",null,null,null,"Hvilken mdr. godtgørelse er aftalt"]
["Bank kontonummer til overførsel"]